bitfinex-derivatives/quotes_ETHF0:USTF0_20260213
["timestamp","ask_amount","ask_price","bid_price","bid_amount"]
[1771012799852,1.03731289,2058.1,2057.4,0.00297804]
[1771012800053,1.03731289,2058.1,2057.5,0.00297804]
[1771012801459,1.03731289,2058.1,2057.4,0.02461716]
[1771012801660,1.03731289,2058.1,2057.5,0.01911975]
[1771012801962,1.03146021,2057.9,2057.5,0.01911975]
[1771012802656,1.03146021,2058.1,2057.5,0.01911975]
[1771012802858,1.03690372,2057.9,2057.4,0.0061865]
[1771012806558,1.03690372,2057.9,2057.4,0.04031288]
[1771012806753,2.91213409,2058.8,2057.4,0.04031288]
[1771012806961,1.03255702,2058.6,2057.9,0.03280673]
[1771012807171,2.73315072,2058.6,2057.9,0.03280673]
[1771012807372,1.03255702,2058.5,2057.6,1.9437237]
[1771012807570,1.03255702,2058.5,2057.6,0.27593673]
[1771012807773,1.03255702,2058.5,2057.7,0.03318569]
[1771012811171,7.142,2058.8,2057.5,0.09789569]
[1771012811379,1.00544106,2058.2,2057.5,0.09789569]
[1771012812177,1.00544106,2058.2,2057.4,0.0061865]
[1771012812178,1.00544106,2058.0,2057.4,0.0061865]
[1771012816285,1.00544106,2057.6,2056.7,8.84978367]
[1771012816584,1.00544106,2057.3,2056.4,0.12522679]
[1771012816885,1.00544106,2057.3,2056.7,1.81502343]
[1771012817189,1.00544106,2057.3,2056.6,0.11442973]
[1771012817379,1.00968249,2057.3,2056.6,0.11945011]
[1771012818381,2.71027619,2057.3,2056.6,0.00502038]
[1771012818576,1.00544106,2057.2,2056.6,0.00502038]
[1771012819290,1.00544106,2057.0,2056.6,0.00502038]
[1771012819781,1.00968249,2057.3,2056.8,0.14525936]
[1771012820490,1.00968249,2057.3,2056.7,0.14747554]
[1771012820786,1.00968249,2057.3,2056.6,0.17819478]
[1771012821482,1.00544106,2057.2,2056.6,0.17819478]
[1771012821678,1.00544106,2057.0,2056.6,0.00502038]
[1771012821889,1.00544106,2057.0,2056.3,0.17576763]
[1771012822482,1.00544106,2056.8,2056.2,0.17576763]
[1771012822687,1.00544106,2056.8,2056.1,0.18306202]
[1771012822988,1.00544106,2056.8,2056.1,0.00405753]
[1771012824488,1.00544106,2056.8,2056.0,0.049]
[1771012825388,1.00544106,2056.8,2056.0,0.05134365]
[1771012825784,1.00544106,2056.6,2055.4,0.18655821]
[1771012825989,1.00544106,2056.6,2055.7,0.24000868]
[1771012826489,1.00544106,2056.6,2055.9,0.24000868]
[1771012826882,1.00544106,2056.6,2055.9,0.24516638]
[1771012828088,1.00544106,2057.2,2056.2,0.2433]
[1771012828585,1.00544106,2057.2,2056.0,0.76933237]
[1771012828782,1.00544106,2057.2,2056.1,0.24331]
[1771012829087,1.00544106,2057.2,2056.1,0.95947308]
[1771012829588,1.00544106,2057.2,2056.2,0.71616308]
[1771012829778,1.00544106,2057.2,2056.1,0.9599101]
[1771012830091,1.00544106,2057.2,2056.2,0.71899219]
[1771012830290,4.03524143,2057.3,2056.2,0.71899219]
[1771012830291,1.00544106,2057.0,2056.2,0.71899219]
[1771012832990,1.00544106,2057.0,2056.4,0.70311995]
[1771012833293,1.05206073,2057.1,2056.4,0.70311995]
[1771012835995,1.05206073,2057.1,2056.6,0.70027824]
[1771012836191,1.05630216,2057.3,2056.6,0.70027824]
[1771012836394,1.05630216,2057.3,2056.8,0.70027824]
[1771012840696,1.05630216,2057.3,2056.1,5.98545]
[1771012840697,0.97272072,2057.4,2057.0,0.98758231]
[1771012840996,5.4606503,2058.4,2056.5,0.98758231]
[1771012840997,0.97272072,2057.9,2056.5,0.98758231]
[1771012841692,0.97698117,2057.9,2056.5,0.98758231]
[1771012842499,0.97272072,2057.6,2056.5,0.98758231]
[1771012842802,0.97272072,2057.3,2056.4,1.23084231]
[1771012844902,0.97272072,2057.3,2056.5,0.98758231]
[1771012845102,0.97272072,2057.3,2056.7,0.98758231]
[1771012845298,0.97272072,2057.3,2056.5,0.98758231]
[1771012845697,0.97272072,2057.1,2056.5,0.98758231]
[1771012847002,0.97272072,2057.1,2056.6,0.98758231]
[1771012847194,0.61858421,2057.5,2056.6,0.98758231]
[1771012847696,0.61858421,2057.3,2056.6,0.98758231]
[1771012849809,0.64299232,2057.5,2056.8,0.98758231]
[1771012852909,0.64299232,2057.5,2056.7,0.24324]
[1771012853105,0.64299232,2057.5,2056.7,1.23082231]
[1771012854705,0.68894725,2057.8,2057.0,0.24319]
[1771012854905,0.68894725,2057.8,2057.1,0.98758231]
[1771012855507,0.68894725,2057.8,2056.9,0.98758231]
[1771012855708,0.68894725,2057.8,2056.6,0.98758231]
[1771012856810,0.64767753,2057.6,2056.6,0.98758231]
[1771012858506,0.64767753,2057.6,2056.5,0.24325]
[1771012858811,0.65076379,2057.4,2056.5,1.23083231]
[1771012859212,0.6473336,2057.2,2056.5,0.98758231]
[1771012859709,0.6473336,2057.2,2056.2,0.98758231]
[1771012860612,0.64863074,2057.0,2056.0,0.98758231]
[1771012861907,0.64763522,2056.8,2056.0,0.98758231]
[1771012862612,0.64763522,2056.8,2055.9,0.0051577]
[1771012864410,0.64737502,2056.6,2055.2,0.98741047]
[1771012864608,7.038,2056.5,2055.2,0.98741047]
[1771012864812,0.64737502,2056.4,2055.4,0.98741047]
[1771012865215,0.64749598,2056.3,2055.4,0.98741047]
[1771012865412,0.65343589,2056.3,2055.4,0.00347723]
[1771012865814,0.64711954,2056.2,2055.0,0.98741047]
[1771012866212,0.64520167,2056.0,2055.0,0.98741047]
[1771012866407,7.67920167,2055.9,2055.0,0.98741047]
[1771012866608,0.64520167,2055.8,2055.0,0.98741047]
[1771012866815,0.64520167,2055.8,2055.0,0.98915278]
[1771012868918,0.68761009,2056.2,2055.4,0.98741047]
[1771012869223,0.00593991,2056.3,2055.8,0.98741047]
[1771012870017,0.68876054,2056.6,2055.8,0.98741047]
[1771012871326,0.00502445,2056.6,2056.0,0.98741047]
[1771012872430,0.74084131,2056.6,2056.0,0.98741047]
[1771012872931,0.74084131,2056.6,2055.9,0.24333]
[1771012872932,0.74084131,2056.6,2055.9,0.98741047]
[1771012873130,0.74084131,2056.6,2055.5,0.98741047]
[1771012878038,0.70704541,2056.4,2055.5,0.98741047]
[1771012878335,0.70704541,2056.0,2055.1,0.98741047]
[1771012886346,0.70704541,2056.0,2055.1,1.23082047]
[1771012886643,0.70819049,2056.3,2055.1,1.23082047]
[1771012887243,0.70819049,2056.3,2055.1,0.98741047]
[1771012887449,0.70819049,2056.3,2055.6,0.98741047]
[1771012887640,0.70763766,2056.6,2055.8,0.98741047]
[1771012888847,0.70763766,2056.6,2055.3,0.98741047]
[1771012889749,0.70763766,2056.6,2055.5,0.98741047]
[1771012891751,0.70630078,2056.6,2055.7,1.01009045]
[1771012893549,0.70630078,2056.6,2055.2,1.01009045]
[1771012893846,0.69899316,2056.2,2055.2,1.01009045]
[1771012894144,0.70010936,2056.0,2055.2,1.01009045]
[1771012895050,7.66210936,2056.0,2055.2,1.01009045]
[1771012895251,0.70137574,2055.9,2055.2,1.01009045]
[1771012897651,0.69211823,2056.1,2055.2,1.01009045]
[1771012898448,0.69249324,2056.5,2055.4,1.08820863]
[1771012898651,0.69249324,2056.3,2055.4,1.08820863]
[1771012898855,7.64394415,2056.5,2055.6,1.08820863]
[1771012899055,0.68897232,2056.4,2055.6,1.08820863]
[1771012901654,0.67196571,2056.3,2055.4,1.08820863]
[1771012901846,0.6727125,2056.5,2055.4,1.33158863]
[1771012910464,0.6727125,2056.5,2055.9,1.08820863]
[1771012910658,0.00502445,2056.6,2056.1,1.08820863]
[1771012910857,0.71577292,2056.6,2056.1,1.08820863]
[1771012911361,0.00502445,2056.6,2056.1,1.08820863]
[1771012911958,0.71644957,2056.6,2056.1,1.08820863]
[1771012913965,0.00502445,2056.6,2056.1,1.08820863]
[1771012914163,0.7508215,2056.6,2056.1,1.08820863]
[1771012915260,0.00502445,2056.6,2056.1,1.08820863]
[1771012915461,0.74777585,2056.6,2056.1,1.08820863]
[1771012916570,0.74777585,2056.6,2055.9,1.08820863]
[1771012917162,0.00502445,2056.6,2055.9,1.08820863]
[1771012918363,0.76314134,2056.6,2055.9,1.08820863]
[1771012920265,0.76314134,2056.6,2055.7,1.08820863]
[1771012920467,0.7611599,2056.5,2055.6,1.08820863]
[1771012921069,0.7611599,2056.5,2055.8,1.12286186]
[1771012923866,0.7611599,2056.5,2055.3,0.2434]
[1771012924071,0.7611599,2056.5,2055.4,1.12286186]
[1771012924474,0.7611599,2056.5,2055.6,1.12286186]
[1771012924770,0.7611599,2056.5,2055.8,1.12286186]
[1771012933581,0.00502445,2056.6,2055.8,1.12286186]
[1771012933782,0.00502445,2056.6,2056.0,1.12286186]
[1771012933981,0.77300988,2057.0,2056.2,1.12286186]
[1771012934987,0.77654892,2057.0,2056.2,1.12286186]
[1771012942185,0.79556652,2056.9,2056.2,1.12286186]
[1771012943993,0.00353904,2057.0,2056.2,1.12286186]
[1771012944189,7.71523226,2057.0,2056.2,1.12286186]
[1771012945191,0.81223226,2057.0,2056.2,1.12286186]
[1771012945392,0.81362277,2056.9,2056.2,1.12286186]
[1771012951098,0.81362277,2056.9,2056.1,1.08879689]
[1771012954501,0.00353904,2057.0,2056.1,1.08879689]
[1771012954696,0.83750257,2057.0,2056.1,1.08879689]
[1771012954997,0.83750257,2057.0,2056.2,1.08879689]
[1771012955599,2.57582095,2056.9,2056.2,1.33209689]
[1771012956203,1.70306669,2056.7,2056.2,1.08879689]
[1771012957402,0.86804352,2056.6,2056.2,1.08879689]
[1771012959910,2.56989848,2056.5,2055.9,1.03078503]
[1771012960101,0.86683179,2056.5,2055.9,1.03078503]
[1771012960301,0.86683179,2056.6,2055.9,1.03078503]
[1771012964804,2.59073932,2056.3,2055.9,1.03078503]
[1771012965011,0.87100597,2056.4,2055.9,1.03078503]
[1771012965211,0.87100597,2056.4,2055.8,1.03078503]
[1771012965711,0.87100597,2056.3,2055.8,1.03078503]
[1771012967414,0.87100597,2056.3,2055.4,1.03078503]
[1771012970213,6.925,2056.2,2055.4,1.03078503]
[1771012970413,0.88386695,2056.1,2055.4,1.03078503]
[1771012974419,0.88329045,2056.6,2055.6,1.03078503]
[1771012975316,0.88329045,2056.6,2055.8,1.03078503]
[1771012979221,0.90657044,2056.8,2056.0,1.03078503]
[1771012979421,0.91010948,2057.0,2056.0,1.03078503]
[1771012980624,0.00353904,2057.0,2056.2,1.03078503]
[1771012980924,0.91256092,2057.4,2056.4,1.04206095]
[1771012981918,0.91682545,2057.3,2056.4,1.04206095]
[1771012982121,0.92074089,2057.4,2056.6,1.04206095]
[1771012982326,0.92074089,2057.4,2056.6,1.04754421]
[1771012983023,0.00391544,2057.4,2056.6,1.04754421]
[1771012983222,0.00391544,2057.4,2056.8,1.04206095]
[1771012983620,0.9014744,2058.1,2057.0,1.04206095]
[1771012983827,0.9014744,2058.1,2057.2,1.04206095]
[1771012984228,0.90179403,2058.3,2057.2,1.04206095]
[1771012984622,0.90715173,2058.3,2057.2,1.04206095]
[1771012984927,0.90715173,2058.3,2057.4,1.04206095]
[1771012986126,0.90715173,2058.3,2056.9,1.04206095]
[1771012988429,0.90715173,2058.3,2057.0,0.2432]
[1771012988732,0.89928164,2058.1,2057.1,1.04206095]
[1771012989527,0.8996696,2058.3,2057.3,1.04206095]
[1771012991625,0.8996696,2058.3,2057.5,1.04206095]
[1771012991831,0.0053577,2058.3,2057.5,1.04206095]
[1771012992228,0.0053577,2058.3,2057.6,0.24313]
[1771012992424,0.0053577,2058.3,2057.7,1.04206095]
[1771012993832,0.92921984,2058.3,2057.7,1.04206095]
[1771012995531,0.0053577,2058.3,2057.7,1.04206095]
[1771012997833,0.93053086,2058.3,2057.7,1.04206095]
[1771012998533,0.0053577,2058.3,2057.7,1.04206095]
[1771012998932,0.92994733,2058.3,2057.7,1.04206095]
[1771013001336,0.92994733,2058.3,2057.1,1.04206095]
[1771013001530,0.92994733,2058.3,2057.3,1.04206095]
[1771013001729,0.92994733,2058.3,2057.5,1.04206095]
[1771013003837,0.0053577,2058.3,2057.7,1.04206095]
[1771013004640,0.9413418,2058.8,2057.9,1.04206095]
[1771013005441,0.9413418,2058.8,2057.7,1.04206095]
[1771013005642,0.94626739,2058.8,2057.7,1.04206095]
[1771013005842,0.95060898,2058.7,2057.7,1.04206095]
[1771013007643,0.9921558,2058.5,2057.7,1.04206095]
[1771013008348,0.9921558,2058.5,2057.4,1.04206095]
[1771013009551,1.03375331,2058.3,2057.4,1.04206095]
[1771013009847,1.27681331,2058.3,2057.4,1.04206095]
[1771013012742,1.0368363,2058.1,2057.4,1.04206095]
[1771013014547,1.05103159,2058.3,2057.4,1.04206095]
[1771013015456,1.05103159,2058.3,2057.6,1.14672797]
[1771013017053,1.05103159,2058.3,2057.1,1.09025446]
[1771013017750,1.05166702,2058.1,2057.1,1.09025446]
[1771013022054,0.97949512,2057.9,2057.1,1.09025446]
[1771013022353,0.97949512,2057.9,2056.7,1.09025446]
[1771013024258,0.97949512,2057.9,2056.9,1.09025446]
[1771013025758,0.98753198,2057.7,2056.9,1.09025446]
[1771013026655,0.9874611,2057.8,2056.9,1.09025446]
[1771013035059,0.9874611,2057.8,2056.8,1.09025446]
[1771013035663,1.03317912,2057.6,2056.8,1.09025446]
[1771013038261,1.03317912,2057.6,2056.9,1.09025446]
[1771013040665,1.03465468,2057.8,2056.9,1.09025446]
[1771013040863,1.03844899,2057.7,2056.9,1.09025446]
[1771013042263,1.03832254,2057.9,2056.9,1.33345446]
[1771013042664,1.03832254,2058.3,2057.2,1.08192803]
[1771013043060,1.03832254,2058.3,2057.4,1.08192803]
[1771013044362,7.79445967,2058.5,2057.5,0.24314]
[1771013044668,1.03745967,2058.7,2057.8,1.08192803]
[1771013046570,0.00492559,2058.8,2058.0,1.08192803]
[1771013046769,1.00303334,2058.8,2058.0,1.08192803]
[1771013047767,0.00492559,2058.8,2058.0,1.08192803]
[1771013048764,1.00896258,2058.8,2058.0,1.08192803]
[1771013049870,1.00397894,2058.7,2058.0,1.08192803]
[1771013050668,1.00397894,2058.7,2057.4,0.24315]
[1771013050867,1.00397894,2058.7,2057.5,1.08192803]
[1771013052964,1.00397894,2058.7,2057.7,1.08192803]
[1771013060475,1.00397894,2058.7,2057.9,1.08192803]
[1771013070785,2.55851263,2058.8,2057.9,1.08192803]
[1771013070786,0.99274395,2058.8,2057.9,1.08192803]
[1771013071079,0.9917461,2058.8,2057.9,1.08192803]
[1771013071276,0.00492559,2058.8,2058.1,1.12760335]
[1771013071478,0.00492559,2058.8,2058.1,1.1334694]
[1771013072783,0.99169224,2058.8,2058.1,1.1334694]
[1771013073685,0.00492559,2058.8,2058.1,1.1334694]
[1771013074184,0.98814321,2059.1,2058.1,1.1334694]
[1771013075080,0.99169866,2059.1,2058.1,1.1334694]
[1771013076288,0.00355545,2059.1,2058.4,0.24304]
[1771013076583,0.98449473,2059.5,2058.5,1.03953342]
[1771013077383,0.99026722,2059.5,2058.5,1.03953342]
[1771013083193,0.99026722,2059.5,2058.7,1.03953342]
[1771013083695,0.00577249,2059.5,2058.9,1.03953342]
[1771013083891,0.97159175,2059.9,2059.1,1.03953342]
[1771013084795,0.97514927,2059.9,2059.1,1.03953342]
[1771013088903,2.70294807,2059.5,2059.1,1.03953342]
[1771013089292,1.00401365,2059.5,2059.1,1.03953342]
[1771013091306,2.70646259,2059.7,2059.1,1.03953342]
[1771013091704,1.00752817,2059.6,2059.1,1.03953342]
[1771013092810,1.01186663,2059.4,2059.0,1.03953342]
[1771013093010,1.69893442,2059.5,2059.0,1.03953342]
[1771013093317,1.01183535,2059.5,2059.0,1.03953342]
[1771013094811,1.00731285,2059.6,2059.0,1.03953342]
[1771013098210,1.00807432,2059.5,2058.8,1.03953342]
[1771013098414,1.00807432,2059.1,2058.3,1.03953342]
[1771013098706,1.00807432,2059.0,2058.3,1.03953342]
[1771013098914,1.03783969,2058.7,2058.2,1.03953342]
[1771013100210,1.03783969,2059.0,2058.2,1.03953342]
[1771013100412,1.03783969,2059.3,2058.2,1.03953342]
[1771013100915,1.03783969,2059.3,2058.3,0.24305]
[1771013101116,1.10576921,2059.7,2058.4,1.07491468]
[1771013101311,1.10576921,2059.7,2058.6,1.07491468]
[1771013108320,1.10576921,2059.5,2058.6,1.07491468]
[1771013110015,1.10576921,2059.4,2058.6,1.07491468]
[1771013114723,1.10576921,2059.4,2058.4,1.07491468]
[1771013115126,1.10576921,2059.2,2058.2,1.07491468]
[1771013116126,1.10576921,2059.2,2058.2,1.31797468]
[1771013116328,1.10576921,2059.2,2058.2,1.07491468]
[1771013124237,1.10576921,2059.7,2058.6,1.07491468]
[1771013124422,1.10576921,2059.7,2058.8,1.07491468]
[1771013125032,1.10576921,2059.5,2058.4,1.07491468]
[1771013125931,1.10576921,2059.3,2058.4,1.07491468]
[1771013126728,1.10576921,2059.1,2058.1,0.00586605]
[1771013126934,1.10576921,2059.1,2058.1,1.08078073]
[1771013127634,1.10576921,2058.9,2058.1,1.08078073]
[1771013131440,1.04680642,2059.5,2058.1,1.08078073]
[1771013131736,1.04680642,2059.3,2058.1,1.32385073]
[1771013132135,1.04680642,2059.8,2058.5,0.24302]
[1771013132330,1.04680642,2059.7,2058.8,1.13508135]
[1771013133528,1.04680642,2059.7,2058.6,1.13508135]
[1771013134738,1.04680642,2059.5,2058.6,1.13508135]
[1771013142545,1.28972642,2059.5,2058.3,1.07705702]
[1771013143943,1.14131259,2059.3,2058.3,1.07705702]
[1771013144143,1.14131259,2059.1,2058.3,1.07705702]
[1771013147644,1.14131259,2058.9,2058.3,1.07705702]
[1771013148451,1.14131259,2059.4,2058.3,1.07705702]
[1771013148641,1.14131259,2059.2,2058.3,1.07705702]
[1771013149542,7.73831259,2059.3,2058.3,1.07705702]
[1771013149849,7.73731259,2059.5,2058.3,1.32009702]
[1771013150141,1.14131259,2059.4,2058.3,1.32009702]
[1771013150538,1.14131259,2059.7,2058.3,1.32009702]
[1771013150738,1.14131259,2059.7,2058.6,1.07705702]
[1771013156549,1.14131259,2059.5,2058.6,1.07705702]
[1771013162845,7.69961499,2059.4,2058.6,1.07705702]
[1771013163953,1.11961499,2059.3,2058.6,1.07705702]
[1771013165147,1.11961499,2059.4,2058.6,1.07705702]
[1771013167850,1.11961499,2059.2,2058.6,1.07705702]
[1771013168058,1.11961499,2059.0,2058.6,1.07705702]
[1771013168553,1.11961499,2059.0,2058.1,1.70493682]
[1771013168751,1.11961499,2058.9,2058.2,1.08919695]
[1771013169157,1.11961499,2059.0,2058.2,1.08919695]
[1771013181063,1.11961499,2058.9,2058.2,1.08919695]
[1771013190167,1.11961499,2058.9,2058.1,0.00586605]
[1771013190366,1.11961499,2058.9,2058.1,1.095063]
[1771013190869,1.70050667,2058.7,2058.1,1.095063]
[1771013191067,1.06320988,2058.6,2058.1,1.095063]
[1771013193667,1.06320988,2058.4,2058.1,0.00586605]
[1771013193869,1.06320988,2058.4,2058.0,1.16558277]
[1771013194065,1.06320988,2058.2,2057.5,1.16558277]
[1771013194260,1.70050667,2058.5,2057.7,1.16558277]
[1771013194466,2.76371655,2058.5,2057.7,1.16558277]
[1771013194667,1.06320988,2058.4,2057.7,1.16558277]
[1771013194865,1.06884942,2058.4,2057.7,1.17040624]
[1771013196767,0.00563954,2058.4,2057.7,1.17040624]
[1771013196968,0.00563954,2058.4,2057.9,1.06655533]
[1771013199675,1.1492246,2058.4,2057.9,1.06655533]
[1771013200170,1.1492246,2058.4,2057.7,0.00482347]
[1771013200171,1.1492246,2058.4,2057.7,1.0713788]
[1771013200572,1.14358506,2058.2,2057.7,1.0713788]
[1771013200979,0.00563954,2058.4,2057.9,1.06655533]
[1771013201470,1.1492246,2058.4,2057.9,1.06655533]
[1771013201976,1.1492246,2058.4,2057.8,1.06655533]
[1771013202375,1.14358506,2058.2,2057.8,1.06655533]
[1771013202579,1.14358506,2058.3,2057.8,1.06655533]
[1771013203480,0.00563954,2058.4,2057.8,1.06655533]
[1771013204078,0.00563954,2058.4,2058.0,1.06655533]
[1771013204480,1.14358506,2058.6,2058.0,1.06655533]
[1771013205181,1.14358506,2058.7,2058.0,1.06655533]
[1771013205379,1.1472587,2058.7,2058.0,1.06655533]
[1771013205775,1.14358506,2059.2,2058.6,1.06655533]
[1771013206481,1.14358506,2059.4,2058.6,1.06655533]
[1771013206677,8.19850667,2059.6,2059.0,1.06655533]
[1771013206678,1.14358506,2059.6,2059.0,1.06655533]
[1771013206875,1.14706807,2059.6,2059.0,1.06655533]
[1771013207276,1.14358506,2060.2,2059.1,1.06655533]
[1771013207481,1.14358506,2060.3,2059.1,1.06655533]
[1771013208277,1.14822153,2060.3,2059.1,1.06655533]
[1771013209080,1.14358506,2060.0,2059.1,1.06655533]
[1771013212878,1.14358506,2059.8,2059.1,1.06655533]
[1771013216483,1.14358506,2060.2,2059.1,1.06655533]
[1771013217785,1.14358506,2060.1,2059.1,1.06655533]
[1771013224086,1.16875649,2060.3,2059.1,1.06655533]
[1771013228387,1.16412002,2060.2,2059.1,1.06655533]
[1771013232894,1.16412002,2060.2,2059.2,1.11787985]
[1771013233092,1.16412002,2060.2,2059.2,1.122028]
[1771013237096,1.16412002,2060.0,2059.2,1.122028]
[1771013237391,1.16412002,2059.8,2058.7,0.243]
[1771013237588,1.16412002,2059.6,2058.3,1.11787985]
[1771013237893,1.16412002,2059.3,2058.1,1.11787985]
[1771013238091,1.16412002,2059.1,2057.9,1.11787985]
[1771013238295,1.16412002,2058.9,2057.9,1.11787985]
[1771013238500,1.16412002,2058.7,2057.9,1.11787985]
[1771013238699,1.170205,2058.7,2057.9,1.12392736]
[1771013242401,1.170205,2058.7,2057.9,0.00604751]
[1771013242903,1.170205,2058.7,2057.5,1.11787985]
[1771013243099,1.16412002,2058.2,2057.0,1.11787985]
[1771013243700,1.16412002,2058.2,2057.0,1.12406305]
[1771013244201,1.16412002,2058.0,2057.0,0.0061832]
[1771013244401,1.16412002,2057.8,2057.0,0.0061832]
[1771013249405,6.446,2057.9,2056.2,7.58960015]
[1771013249406,1.16412002,2057.6,2056.4,1.11787985]
[1771013249895,1.16412002,2057.4,2056.4,1.11787985]
[1771013250299,1.16412002,2057.4,2056.4,1.12246302]
[1771013250705,1.16412002,2057.4,2056.4,0.00458317]
[1771013251202,1.12652703,2057.2,2056.4,0.00458317]
[1771013251507,1.12652703,2057.2,2056.2,1.16283922]
[1771013251508,1.12652703,2057.0,2056.1,1.16283922]
[1771013252404,1.13016878,2057.0,2056.1,1.16794997]
[1771013259104,0.00364175,2057.0,2056.2,0.2433]
[1771013259409,0.00364175,2057.0,2056.1,0.00511075]
[1771013259410,1.16218595,2057.9,2056.7,1.14269403]
[1771013259607,1.16218595,2057.7,2056.2,0.2433]
[1771013259812,1.16218595,2057.7,2056.3,1.14269403]
[1771013260310,1.16218595,2057.5,2056.3,1.14269403]
[1771013261008,1.1663559,2057.5,2056.3,1.14269403]
[1771013261808,1.1663559,2057.5,2056.5,1.14269403]
[1771013262013,1.1663559,2057.5,2056.7,1.14269403]
[1771013262614,0.00416995,2057.5,2056.9,1.14269403]
[1771013263010,1.1663559,2057.5,2056.9,1.14269403]
[1771013263715,1.1663559,2057.5,2056.8,0.24322]
[1771013263910,1.1663559,2057.5,2056.8,1.38591403]
[1771013264505,0.00416995,2057.5,2056.8,1.38591403]
[1771013264709,16.609,2058.5,2057.2,1.14269403]
[1771013264710,1.16218595,2057.9,2057.2,1.14269403]
[1771013264917,1.16218595,2057.9,2057.4,1.14269403]
[1771013265306,1.16218595,2058.1,2057.4,1.14269403]
[1771013265714,1.16770185,2058.1,2057.4,1.14269403]
[1771013273423,0.0055159,2058.1,2057.4,1.14269403]
[1771013275327,1.16770185,2058.1,2057.4,1.14269403]
[1771013279330,0.0055159,2058.1,2057.4,1.14269403]
[1771013280629,0.0055159,2058.1,2057.6,1.14269403]
[1771013280830,1.16218595,2058.3,2057.6,1.14654777]
[1771013281639,1.16218595,2058.3,2057.6,0.00385374]
[1771013281934,1.16651563,2058.3,2057.6,0.00385374]
[1771013283330,1.16651563,2058.3,2057.2,1.09988132]
[1771013283833,1.16651563,2058.3,2057.4,1.09988132]
[1771013284032,1.12635829,2058.2,2057.4,1.09988132]
[1771013284233,1.12635829,2058.2,2057.4,1.10400976]
[1771013287036,1.12635829,2058.2,2057.6,1.09988132]
[1771013287235,0.00432968,2058.3,2057.8,1.09988132]
[1771013287443,0.00432968,2058.3,2057.4,0.00412844]
[1771013287444,1.12635829,2058.8,2058.2,1.09988132]
[1771013288032,1.12635829,2058.8,2057.8,1.09988132]
[1771013288345,1.13109172,2058.8,2057.8,1.09988132]
[1771013288738,1.12635829,2058.7,2057.8,1.09988132]
[1771013288936,1.12635829,2058.7,2057.7,1.34300132]
[1771013298345,1.12635829,2058.1,2057.4,0.00412844]
[1771013298533,1.12635829,2058.0,2057.1,1.09988132]
[1771013299639,1.12635829,2058.3,2057.3,1.09988132]
[1771013299842,7.51735829,2058.2,2057.3,1.09988132]
[1771013300834,6.391,2058.2,2057.5,1.09988132]
[1771013301640,7.51735829,2058.2,2057.5,1.09988132]
[1771013301843,1.12635829,2058.1,2057.5,1.09988132]
[1771013302242,6.391,2058.2,2057.5,1.09988132]
[1771013302436,1.12635829,2058.4,2057.5,1.09988132]
[1771013303946,1.12635829,2058.6,2057.6,0.24313]
[1771013304144,1.12635829,2058.6,2057.7,1.09988132]
[1771013304444,1.13109172,2058.8,2057.9,1.09988132]
[1771013304841,1.12635829,2059.0,2058.1,1.09988132]
[1771013305943,1.12995037,2059.0,2058.1,1.09988132]
[1771013307647,1.12995037,2059.0,2058.3,1.09988132]
[1771013307952,1.12995037,2059.0,2058.2,0.24306]
[1771013308151,1.12995037,2059.0,2058.2,1.34294132]
[1771013310951,1.12995037,2059.0,2057.8,1.18451056]
[1771013311856,1.12995037,2059.0,2058.0,1.18451056]
[1771013320562,1.09022401,2058.7,2057.5,7.51560588]
[1771013320760,1.09022401,2058.7,2057.6,1.13731041]
[1771013321860,1.09022401,2058.7,2058.0,1.13731041]
[1771013327473,1.09022401,2058.7,2057.6,1.13731041]
[1771013330277,1.09022401,2058.7,2057.8,1.13731041]
[1771013330576,1.09022401,2058.8,2057.8,1.13731041]
[1771013331075,1.09022401,2058.8,2057.9,0.24309]
[1771013331265,1.09022401,2058.8,2058.0,1.13731041]
[1771013334775,1.09022401,2058.8,2058.2,1.13731041]
[1771013335582,1.09022401,2058.8,2058.1,1.38038041]
[1771013335881,1.09022401,2058.8,2058.1,1.13731041]
[1771013336069,1.09022401,2058.4,2057.2,0.24317]
[1771013336271,1.09022401,2058.1,2057.3,1.13731041]
[1771013336676,1.09022401,2058.1,2057.1,1.14072502]
[1771013336980,1.09022401,2057.9,2057.1,1.14072502]
[1771013337375,1.09022401,2058.3,2057.3,1.13731041]
[1771013337582,1.09022401,2058.2,2057.5,1.13731041]
[1771013342678,1.11734868,2058.1,2057.5,1.13731041]
[1771013342886,1.11734868,2058.1,2057.2,1.15094087]
[1771013344988,1.11734868,2058.1,2057.1,0.00341461]
[1771013345181,1.11734868,2058.1,2057.1,1.15435548]
[1771013345984,1.11734868,2057.9,2057.1,1.15435548]
[1771013352591,1.11734868,2057.9,2057.1,0.00341461]
[1771013353191,1.11734868,2057.9,2057.1,1.15435548]
[1771013354090,6.402,2058.3,2057.1,1.15435548]
[1771013354091,2.90026038,2058.5,2057.1,1.39753548]
[1771013354295,1.11734868,2058.1,2057.1,1.39753548]
[1771013355192,1.11734868,2058.3,2057.1,1.39753548]
[1771013355493,1.11734868,2058.3,2057.6,1.15094087]
[1771013355894,1.11734868,2058.6,2057.6,1.15094087]
[1771013356892,1.11734868,2058.6,2057.4,1.15094087]
[1771013357089,1.11734868,2058.6,2057.1,0.00341461]
[1771013357090,1.36039868,2058.3,2057.2,1.15094087]
[1771013359192,1.11734868,2058.1,2057.2,1.15094087]
[1771013359399,1.11734868,2057.9,2057.1,0.00341461]
[1771013359896,1.11734868,2057.9,2057.1,1.15435548]
[1771013364701,1.11734868,2057.7,2056.9,1.15094087]
[1771013365397,1.11734868,2057.5,2056.9,1.15094087]
[1771013365699,1.12263126,2057.5,2056.9,1.154504]
[1771013370198,0.00528258,2057.5,2056.9,1.154504]
[1771013370400,1.12263126,2057.5,2056.9,1.154504]
[1771013376711,0.00528258,2057.5,2056.9,1.154504]
[1771013377208,1.08293671,2057.8,2057.1,1.18857142]
[1771013377413,1.08293671,2058.3,2057.3,1.18857142]
[1771013377600,1.08293671,2058.4,2057.3,1.18857142]
[1771013377801,1.08293671,2058.7,2057.5,1.18857142]
[1771013378003,7.54193671,2058.7,2057.7,1.18857142]
[1771013378203,7.54695325,2058.7,2057.7,1.18857142]
[1771013378406,1.08293671,2058.6,2057.7,1.18857142]
[1771013378610,1.08795325,2058.7,2057.7,1.18857142]
[1771013379211,1.08795325,2058.7,2057.9,1.18857142]
[1771013379708,0.00501654,2058.7,2058.1,1.18857142]
[1771013379911,0.00501654,2058.7,2058.3,1.18857142]
[1771013380106,1.08795325,2058.7,2058.3,1.18857142]
[1771013380412,1.08795325,2058.7,2057.8,1.18857142]
[1771013385214,1.08795325,2058.7,2057.7,1.43169142]
[1771013387923,1.08795325,2058.7,2057.5,1.18857142]
[1771013390628,1.08293671,2058.5,2057.3,1.18857142]
[1771013393628,1.08293671,2058.3,2057.3,1.18857142]
[1771013393830,1.08293671,2058.1,2057.3,1.18857142]
[1771013398230,1.08293671,2058.1,2056.9,0.00356313]
[1771013398231,1.08293671,2058.0,2057.0,1.18857142]
[1771013398444,1.08293671,2058.0,2056.9,0.23191499]
[1771013398739,2.79588895,2058.1,2056.4,0.22835186]
[1771013398740,1.08293671,2057.8,2056.4,0.22835186]